bitfinex/quotes_ETHUSD_20241124
["timestamp","ask_amount","ask_price","bid_price","bid_amount"]
[1732458182756,6.7067941,3300.1,3299.9,2.72735]
[1732458182954,6.7067941,3300.1,3300.0,2.72727]
[1732458183469,6.7067941,3300.1,3299.6,2.72757]
[1732458183670,6.7067941,3300.1,3299.4,2.72771]
[1732458183671,0.55,3299.9,3299.4,2.72771]
[1732458183889,1.6037,3300.0,3299.0,2.72808]
[1732458183890,0.55,3299.7,3299.0,2.72808]
[1732458184046,1.6037,3299.3,3298.6,2.72836]
[1732458184269,1.6037,3299.3,3298.2,1.5962]
[1732458184270,6.70638299,3299.2,3298.2,1.5962]
[1732458184475,0.03035699,3299.1,3298.6,2.72835]
[1732458184780,0.55,3298.9,3298.6,2.72835]
[1732458184954,6.6105,3298.8,3298.1,2.72884]
[1732458185149,0.55,3298.7,3298.6,2.72842]
[1732458185351,0.55,3298.7,3298.6,2.72843]
[1732458185352,6.70636511,3298.7,3298.6,2.72843]
[1732458186002,6.70636511,3298.7,3298.2,2.72869]
[1732458186291,6.70636511,3298.7,3298.0,2.72889]
[1732458186502,6.70636511,3298.7,3297.9,0.15962]
[1732458186684,6.70636511,3298.7,3298.6,2.72843]
[1732458188391,6.15636511,3298.7,3298.6,2.72843]
[1732458188789,6.15636511,3298.7,3298.6,5.72843]
[1732458189378,6.15636511,3298.7,3298.6,2.72843]
[1732458189660,6.70636511,3298.7,3298.6,2.72843]
[1732458189862,0.55,3298.6,3298.2,2.72873]
[1732458190199,0.55,3298.6,3297.9,3.0]
[1732458190200,0.55,3298.4,3297.5,4.5962]
[1732458190353,0.55,3298.4,3298.3,2.72867]
[1732458190554,6.6136,3298.4,3298.3,2.72867]
[1732458192271,6.70878548,3298.4,3298.3,2.72867]
[1732458192494,6.70878548,3298.4,3298.2,3.0]
[1732458192712,6.70878548,3298.4,3298.2,2.72875]
[1732458193907,6.70878548,3298.4,3298.1,5.72878]
[1732458194093,6.6136,3298.4,3298.1,3.0]
[1732458194470,6.6136,3298.4,3298.1,5.72881]
[1732458194667,6.6136,3298.4,3298.0,3.0]
[1732458194905,6.6136,3298.4,3297.3,2.72945]
[1732458194906,0.55,3297.9,3297.3,2.72945]
[1732458195218,0.55,3297.4,3296.8,0.03032366]
[1732458195429,0.55,3297.2,3296.6,2.73001]
[1732458195590,6.0636,3297.1,3296.6,2.73001]
[1732458195786,0.55,3297.0,3296.6,2.73001]
[1732458196002,0.55,3296.8,3296.6,2.73001]
[1732458196216,6.6136,3296.7,3296.6,2.73001]
[1732458196374,6.6136,3296.7,3296.6,6.003011]
[1732458196573,0.55,3296.6,3296.3,3.003361]
[1732458196801,0.55,3296.6,3296.3,2.73032]
[1732458197115,6.0636,3296.5,3296.1,2.73049]
[1732458197285,0.55,3296.4,3296.1,2.73049]
[1732458197491,0.55,3296.2,3295.9,2.73063]
[1732458197679,0.55,3296.2,3296.1,2.73049]
[1732458197874,6.6136,3296.2,3295.9,2.73063]
[1732458198079,6.6136,3296.2,3295.7,2.7308]
[1732458198274,6.6136,3296.2,3295.5,2.73096]
[1732458198275,0.03035699,3296.1,3295.6,2.73089]
[1732458198476,0.03035699,3296.1,3295.5,2.73096]
[1732458198477,6.0636,3296.0,3295.7,2.73079]
[1732458198721,0.55,3295.9,3295.5,2.73096]
[1732458198902,0.55,3295.9,3295.3,0.15962]
[1732458198903,0.55,3295.7,3295.3,0.15962]
[1732458199107,0.55,3295.7,3295.6,2.73091]
[1732458199326,6.6186,3295.7,3295.6,2.73091]
[1732458199835,6.71181232,3295.7,3295.6,2.73091]
[1732458200008,6.71181232,3295.7,3294.8,1.5962]
[1732458200206,8.31551232,3295.7,3295.0,2.73134]
[1732458200417,3.03478,3295.2,3294.5,2.73174]
[1732458200616,0.55,3295.1,3294.7,2.73161]
[1732458200795,6.71172721,3295.1,3294.7,2.73161]
[1732458201000,6.71172721,3295.1,3294.5,2.89443422]
[1732458201620,6.71172721,3295.1,3294.1,2.73213]
[1732458201621,3.03518,3294.7,3294.1,2.73213]
[1732458201820,6.64895699,3294.6,3294.1,2.73213]
[1732458202033,6.7099892,3294.6,3293.6,2.73251]
[1732458202251,6.7099892,3294.6,3294.4,2.73186]
[1732458202392,6.7099892,3294.6,3294.3,2.73192]
[1732458202622,6.7099892,3294.6,3294.4,2.73184]
[1732458202824,6.7099892,3294.6,3294.3,2.73193]
[1732458203142,6.7099892,3294.6,3294.5,2.73182]
[1732458203516,6.6186,3294.6,3294.5,2.73182]
[1732458204021,6.6186,3294.6,3294.5,5.76217166]
[1732458204022,6.15961256,3294.6,3294.5,5.76217166]
[1732458204519,0.09101256,3294.6,3294.5,5.73182]
[1732458204699,0.09101256,3294.6,3294.5,6.60853098]
[1732458204902,3.03431,3295.7,3295.0,2.73135]
[1732458205128,1.6418,3295.8,3294.6,2.73173]
[1732458205129,3.03474,3295.2,3294.6,2.73173]
[1732458205298,0.11807924,3295.6,3293.8,1.6436]
[1732458205299,1.6418,3294.9,3293.8,1.6436]
[1732458205497,1.6418,3294.9,3294.6,5.73174]
[1732458205498,0.55,3294.7,3294.6,5.73174]
[1732458205694,6.70788848,3294.7,3294.3,3.0]
[1732458205919,6.70788848,3294.7,3294.1,3.0]
[1732458206120,6.70788848,3294.7,3294.4,3.0]
[1732458206320,6.70788848,3294.7,3294.2,5.73206]
[1732458206522,0.03035699,3294.6,3293.4,1.6436]
[1732458206741,0.55,3294.4,3294.1,2.73211]
[1732458206945,0.55,3294.4,3293.8,2.73234]
[1732458206946,0.55,3294.2,3293.8,2.73234]
[1732458207244,0.55,3294.0,3293.6,2.73251]
[1732458207400,0.55,3293.8,3293.6,2.73253]
[1732458207608,6.07,3293.7,3293.5,0.16436]
[1732458207804,0.55,3293.6,3293.5,2.73265]
[1732458208040,6.70788848,3293.6,3292.6,1.6436]
[1732458208254,6.70788848,3293.6,3292.7,0.49702121]
[1732458208539,6.70788848,3293.6,3292.6,1.67396434]
[1732458208540,0.55,3293.4,3293.3,2.73282]
[1732458208741,6.62,3293.4,3293.3,2.73282]
[1732458208946,6.62,3293.4,3293.3,3.2794]
[1732458209113,6.70788848,3293.4,3293.3,3.2794]
[1732458209906,6.70788848,3293.4,3293.3,6.2794]
[1732458210746,6.15788848,3293.4,3293.3,6.2794]
[1732458210905,6.15788848,3293.4,3293.3,7.923]
[1732458211242,8.48e-06,3293.4,3293.3,7.923]
[1732458211443,1.6418,3294.8,3294.7,2.73165]
[1732458211646,2.23406796,3295.4,3295.0,2.73134]
[1732458211806,6.0694,3295.3,3295.1,2.73126]
[1732458212007,6.15108679,3295.3,3295.2,2.73124]
[1732458212256,6.15108679,3295.3,3295.2,6.277498]
[1732458212744,0.00016,3295.3,3295.2,6.3078419]
[1732458213307,0.03035699,3296.5,3296.2,2.7304]
[1732458213504,0.08168679,3296.4,3296.2,2.73033]
[1732458213706,1.6,3296.6,3296.0,2.73055]
[1732458213912,1.6,3296.6,3295.8,3.0]
[1732458213913,0.08168679,3296.5,3296.2,2.73041]
[1732458214109,0.03035699,3296.8,3295.6,3.0]
[1732458214326,0.08168679,3296.7,3295.5,3.0]
[1732458214626,1.6,3296.6,3295.6,3.0]
[1732458214824,6.0676,3296.5,3296.3,2.73026]
[1732458215051,6.14928679,3296.5,3296.4,2.73025]
[1732458215254,6.14928679,3296.5,3296.4,5.73025]
[1732458216056,6.14928679,3296.5,3296.4,3.0]
[1732458216235,6.14928679,3296.5,3296.4,2.73025]
[1732458216972,6.69928679,3296.5,3296.4,2.73025]
[1732458217176,0.55,3296.4,3296.3,3.0]
[1732458217329,6.6176,3296.4,3295.6,5.76124621]
[1732458217646,6.15018509,3296.4,3296.3,2.73033]
[1732458218448,6.15018509,3296.4,3296.3,5.73033]
[1732458218449,6.0676,3296.4,3296.3,5.73033]
[1732458218653,6.0676,3296.4,3296.3,6.85248048]
[1732458218847,6.15121375,3296.4,3296.3,6.85248048]
[1732458220475,6.15121375,3296.4,3296.3,5.73033]
[1732458220476,6.70121375,3296.4,3296.3,5.73033]
[1732458220645,0.55,3296.3,3296.2,2.73041]
[1732458221066,6.70151893,3296.3,3295.9,2.73064]
[1732458221262,6.70151893,3296.3,3295.7,0.03033498]
[1732458221263,6.70151893,3296.3,3296.2,2.42703]
[1732458221938,6.70151893,3296.3,3296.2,5.42703]
[1732458222680,6.70151893,3296.3,3296.2,3.0]
[1732458222879,6.70151893,3296.3,3296.0,2.42717]
[1732458223239,6.70151893,3296.3,3295.9,3.0]
[1732458223581,0.55,3296.0,3294.6,1.6226]
[1732458223781,3.61438699,3296.0,3295.3,2.42769]
[1732458223951,0.55,3295.8,3295.5,2.42754]
[1732458224341,0.55,3296.0,3295.6,2.42746]
[1732458224547,0.63366762,3295.7,3295.6,2.42746]
[1732458224753,0.55,3295.7,3295.6,2.42746]
[1732458224954,0.63366762,3295.7,3295.6,2.42746]
[1732458225136,0.63366762,3295.7,3295.6,5.91296]
[1732458225343,0.63366762,3295.7,3295.6,5.9432989]
[1732458225785,6.0676,3296.3,3295.6,5.9432989]
[1732458225940,6.6176,3296.3,3296.2,2.42703]
[1732458226797,0.55,3296.2,3296.1,2.42711]
[1732458227001,0.55,3296.2,3296.1,5.42711]
[1732458227153,0.55,3296.2,3296.1,3.0]
[1732458227356,0.55,3296.2,3295.9,3.0]
[1732458227656,0.55,3296.2,3296.1,2.42711]
[1732458228508,6.0676,3296.3,3296.1,2.42711]
[1732458228666,6.6176,3296.3,3296.2,5.42703]
[1732458229015,6.0676,3296.3,3296.2,5.42703]
[1732458229184,6.0676,3296.3,3296.2,5.75560684]
[1732458230302,1.543,3298.9,3296.5,1.6443]
[1732458230461,2.16016763,3298.9,3297.4,3.0]
[1732458230660,2.16016763,3298.9,3298.1,2.4256]
[1732458230661,1.543,3298.9,3298.1,2.4256]
[1732458231002,1.543,3298.9,3298.0,2.42568]
[1732458231003,3.06180699,3298.8,3298.0,2.42568]
[1732458231173,0.18465699,3298.8,3298.2,2.42555]
[1732458231586,3.21605699,3298.8,3297.8,2.42584]
[1732458231789,3.21605699,3298.8,3298.0,2.42569]
[1732458231790,0.4758967,3298.7,3298.0,2.42569]
[1732458231986,0.03035699,3298.6,3298.0,2.42569]
[1732458232358,3.5074167,3298.7,3298.0,2.42569]
[1732458232359,0.4758967,3298.7,3298.1,5.42562]
[1732458232565,0.1543,3298.8,3298.1,5.42562]
[1732458232819,0.1543,3298.8,3298.1,2.42562]
[1732458233360,0.55,3298.7,3298.3,2.42542]
[1732458233588,0.55,3298.7,3298.0,0.03031781]
[1732458233589,0.55,3298.7,3298.0,2.45595781]
[1732458233901,0.55,3298.5,3297.8,3.0]
[1732458234100,0.55,3298.5,3297.4,3.0]
[1732458234101,1.6313,3298.3,3297.4,3.0]
[1732458234401,0.55,3298.1,3297.5,2.42607]
[1732458234608,3.03225,3297.9,3297.1,2.42635]
[1732458234915,0.55,3297.8,3297.5,2.42601]
[1732458235095,0.3612607,3297.9,3297.0,0.03032635]
[1732458235096,0.55,3298.1,3297.3,3.0]
[1732458235402,0.784443,3298.1,3297.4,5.42615]
[1732458235710,0.784443,3298.1,3296.7,1.6155]
[1732458235711,3.84689999,3298.1,3296.7,1.6155]
[1732458236007,0.55,3297.9,3296.8,0.43454226]
[1732458236180,0.55,3297.9,3297.5,2.42604]
[1732458236360,0.26479999,3298.1,3297.5,2.42604]
[1732458236361,0.55,3298.0,3297.5,2.42604]
[1732458236703,0.55,3298.0,3297.4,2.4261]
[1732458236912,0.55,3298.0,3297.7,2.42592]
[1732458237129,1.6313,3298.3,3298.0,2.42566]
[1732458237479,0.08413421,3298.2,3297.8,2.42581]
[1732458237696,0.08413421,3298.2,3297.6,2.426]
[1732458237697,0.08413421,3298.2,3297.9,2.42573]
[1732458238209,0.08413421,3298.2,3298.0,2.4257]
[1732458238411,0.55,3298.1,3298.0,2.4257]
[1732458239015,0.63413421,3298.1,3298.0,2.4257]
[1732458239314,0.55,3298.1,3298.0,2.4257]
[1732458240327,1.6313,3298.7,3298.0,0.727729]
[1732458240532,1.6313,3299.2,3298.8,2.42512]
[1732458240680,0.08413421,3299.1,3297.7,3.0]
[1732458240881,0.08413421,3299.1,3295.4,2.23357463]
[1732458240882,3.03124,3299.0,3297.9,3.03031528]
[1732458241181,3.03067,3299.6,3298.8,2.72818]
[1732458241406,3.03079,3299.5,3298.4,0.03031088]
[1732458241716,1.6313,3299.3,3298.1,0.03031146]
[1732458242026,1.6313,3299.1,3297.9,0.03031532]
[1732458242228,3.19435,3299.0,3298.3,2.72862]
[1732458242521,0.58035699,3298.9,3297.9,2.72895]
[1732458242681,0.58035699,3298.9,3298.0,2.72887]
[1732458242682,0.55,3298.7,3298.0,2.72887]
[1732458243280,0.55,3298.7,3297.4,2.7294]
[1732458243281,0.55,3298.1,3297.4,2.7294]
[1732458243538,0.55,3298.1,3296.8,5.45982]
[1732458243539,0.55,3298.1,3298.0,2.72892]
[1732458243889,0.55,3298.1,3297.8,2.72901]
[1732458243890,0.55,3298.1,3297.8,5.45804]
[1732458244230,0.55,3298.3,3297.7,2.72916]
[1732458244458,3.58188,3298.3,3297.6,2.72924]
[1732458245031,1.5901,3298.7,3297.1,1.6047]
[1732458245032,0.55,3297.9,3297.3,3.0]
[1732458245250,3.61258699,3297.9,3297.3,3.0]
[1732458245538,0.55,3297.9,3297.6,2.72924]
[1732458245835,0.55,3298.4,3297.4,2.72942]
[1732458245989,0.55,3298.4,3297.8,2.72901]
[1732458246190,0.55,3298.2,3298.0,2.72889]
[1732458246451,0.55,3298.0,3297.7,3.0]
[1732458246727,0.55,3298.0,3297.8,2.72902]
[1732458246930,0.55,3298.0,3297.9,2.729]
[1732458247613,0.55,3298.0,3297.8,2.72902]
[1732458247819,0.54120246,3298.0,3297.9,2.729]
[1732458248192,0.54120246,3298.0,3297.8,2.72902]
[1732458248540,0.54120246,3298.0,3297.7,3.0]
[1732458248692,1.2320897,3298.0,3297.7,3.0]
[1732458248891,1.20173271,3298.0,3297.5,3.0]
[1732458249209,6.0641,3297.9,3297.5,3.0]
[1732458249532,6.0641,3297.9,3297.4,2.72937]
[1732458249938,0.55,3297.8,3297.6,2.72917]
[1732458250146,0.55,3297.8,3297.7,2.72917]
[1732458251094,0.6352557,3297.8,3297.5,3.0]
[1732458251410,2.2253557,3297.8,3297.5,3.0]
[1732458251794,2.44789127,3297.8,3296.8,2.72984]
[1732458251996,3.03286,3297.3,3296.6,2.73002]
[1732458252315,6.73086295,3297.2,3296.6,2.73002]
[1732458252517,6.70050596,3297.2,3297.1,2.72967]
[1732458253895,6.70050596,3297.2,3297.1,5.72967]
[1732458253896,6.15050596,3297.2,3297.1,5.72967]
[1732458254094,6.15050596,3297.2,3297.1,8.487728]
[1732458256639,6.15050596,3297.2,3297.1,7.36577]
[1732458257157,6.0656,3297.2,3297.1,7.36577]
[1732458257299,6.15018746,3297.2,3297.1,7.36577]
[1732458257703,0.08458213,3297.2,3297.1,7.36577]
[1732458257946,1.5645,3298.6,3297.1,7.36577]
[1732458258248,0.08176813,3298.5,3297.7,2.72912]
[1732458258407,0.08176813,3298.5,3297.8,2.72905]
[1732458258608,0.08176813,3298.5,3297.9,3.0]
[1732458258802,3.14387512,3298.5,3297.7,5.72915]
[1732458259062,3.14387512,3298.5,3297.3,2.72948]
[1732458259063,3.03205,3298.1,3297.3,2.72948]
[1732458259353,0.58035699,3298.0,3297.4,3.0]
[1732458259554,0.55,3297.8,3297.4,3.0]
[1732458259857,0.55,3297.8,3297.7,5.72917]
[1732458260629,0.55,3297.8,3297.6,3.0]
[1732458260833,0.55,3297.8,3297.1,2.72965]
[1732458261055,0.55,3297.8,3296.7,1.66642664]
[1732458261237,0.55,3297.8,3297.2,2.72954]
[1732458261419,0.55,3297.8,3297.4,2.72936]
[1732458262310,0.55,3297.8,3297.3,3.0]
[1732458262515,0.55,3297.8,3297.1,3.0]
[1732458262516,0.03035699,3297.7,3297.1,3.0]
[1732458262751,0.55,3297.6,3297.1,3.0]
[1732458262954,0.03035699,3297.7,3297.1,5.72966]
[1732458263171,3.58233,3297.8,3296.8,0.16361]
[1732458263455,3.58233,3297.8,3297.1,3.0]
[1732458263829,3.58233,3297.8,3297.1,5.72959]
[1732458264419,3.58233,3297.8,3297.1,3.0]
[1732458264420,0.55,3297.6,3297.1,3.0]
[1732458264737,3.61290699,3297.6,3297.1,3.0]
[1732458264934,6.0655,3297.5,3297.0,3.0]
[1732458265158,0.55,3297.4,3297.0,3.0]
[1732458265460,0.55,3297.2,3297.1,5.72962]
[1732458265767,6.6155,3297.2,3297.1,5.72962]
[1732458265931,6.1474072,3297.2,3297.1,5.72962]
[1732458266343,6.1474072,3297.2,3297.1,7.37442]
[1732458266653,0.0819072,3297.2,3297.1,8.70450787]
[1732458267070,4.69638,3298.3,3297.7,2.72911]
[1732458267275,1.6645,3298.3,3297.9,2.72899]
[1732458267422,3.03245,3297.7,3297.4,0.03032162]
[1732458267779,0.08215834,3297.6,3296.7,1.6448]
[1732458267940,3.03279,3297.3,3296.9,3.0]
[1732458268121,3.03279,3297.3,3296.6,2.73008]
[1732458268122,6.06565,3297.3,3296.6,2.73008]
[1732458268321,0.11251533,3297.2,3296.6,2.73008]
[1732458268523,0.11251533,3297.2,3296.6,5.46009]
[1732458268760,0.55,3297.1,3296.6,0.546009]
[1732458268962,0.55,3297.4,3297.0,2.72975]
[1732458269265,0.55,3297.4,3296.6,0.546009]
[1732458269472,0.55,3297.4,3297.0,3.0]
[1732458269960,0.55,3297.2,3296.8,3.0]
[1732458270148,3.5827,3297.4,3296.8,5.7299]
[1732458270352,0.55,3297.2,3296.8,3.0]
[1732458270885,0.55,3297.2,3296.1,2.73049]
[1732458270886,3.58289,3297.2,3296.4,2.73019]
[1732458271052,3.58289,3297.2,3295.8,2.73069]
[1732458271053,0.58035699,3297.1,3296.1,2.95671386]
[1732458271254,0.55,3297.2,3296.2,0.46015139]
[1732458271570,0.55,3297.2,3296.7,2.72994]
[1732458271986,1.6645,3297.5,3296.7,0.03033269]
[1732458272282,1.6645,3297.8,3297.3,2.72949]
[1732458272483,1.6645,3297.8,3297.4,2.72941]
[1732458273045,1.6645,3297.8,3296.8,4.6448]
[1732458273046,1.6645,3297.8,3297.2,5.72953]
[1732458273382,0.55,3297.7,3297.2,5.72952]
[1732458273590,0.55,3297.7,3297.3,2.72945]
[1732458274143,3.58244,3297.7,3297.2,3.0]
[1732458274341,0.55,3297.7,3297.2,5.72956]
[1732458274551,0.55,3297.7,3297.3,2.7295]
[1732458274894,1.6645,3298.3,3298.0,2.72891]
[1732458275060,1.6645,3298.3,3298.2,2.72876]
[1732458275260,1.6645,3298.8,3298.2,0.54576]
[1732458275464,3.03097,3299.3,3298.7,2.72829]
[1732458275465,1.6645,3299.2,3298.7,2.72829]
[1732458275687,1.6645,3299.2,3298.3,3.0]
[1732458275688,3.03137,3298.9,3298.3,3.0]
[1732458275884,2.134047,3299.2,3298.3,3.0]
[1732458276202,2.134047,3299.2,3298.6,2.7284]
[1732458276203,1.6645,3299.2,3298.6,2.7284]
[1732458276350,1.6645,3299.2,3298.5,3.0]
[1732458276757,1.6645,3299.2,3298.2,2.72872]
[1732458276758,1.6645,3299.2,3298.3,5.72867]
[1732458277070,0.03035699,3299.1,3298.5,3.0]
[1732458277250,1.6645,3299.2,3298.5,5.72849]
[1732458277251,4.6956,3299.2,3298.5,5.72849]
[1732458277446,3.03113,3299.1,3298.6,2.72842]
[1732458277747,0.55,3298.9,3298.5,3.0]
[1732458277948,0.63243185,3298.8,3298.3,3.0]
[1732458278149,1.6645,3299.2,3298.8,2.72819]
[1732458278386,0.08243185,3299.1,3299.0,2.72807]
[1732458278991,4.69465,3300.2,3299.5,2.72762]
[1732458279496,0.08247219,3300.1,3299.6,2.72754]
[1732458279852,3.11275219,3300.1,3299.5,2.72768]
[1732458280158,3.11275219,3300.1,3299.4,2.72774]
[1732458280159,3.06068699,3300.0,3299.4,2.72774]
[1732458280589,0.08247219,3299.9,3299.5,2.72766]
[1732458280958,4.69468,3300.2,3299.5,2.72766]
[1732458281288,0.55,3300.0,3299.4,2.72774]
[1732458281592,0.55,3300.0,3299.4,2.72769]
[1732458281593,0.58035699,3300.0,3299.4,2.72769]
[1732458281884,0.58035699,3300.0,3299.3,3.0]
[1732458281885,3.58057,3299.8,3299.3,3.0]
[1732458282090,0.55,3299.8,3299.3,3.0]
[1732458282393,3.03023,3300.1,3299.6,2.72757]
[1732458282394,0.08247219,3299.7,3299.6,2.72757]
[1732458282700,0.55,3299.7,3299.6,2.72757]
[1732458282892,0.63247219,3299.7,3299.6,2.72757]
[1732458283062,0.63247219,3299.7,3299.6,6.54587]
[1732458283261,0.55,3299.7,3299.6,6.54587]
[1732458283687,1.5556,3300.6,3300.1,2.72719]
[1732458284063,0.08280378,3300.5,3300.1,2.72719]
[1732458284255,0.08280378,3300.5,3300.4,2.72694]
[1732458284591,0.08280378,3300.5,3300.2,2.72703]
[1732458284794,4.58499,3301.0,3300.0,0.272733]
[1732458285005,0.08280378,3300.4,3300.2,3.0]
[1732458285291,0.03035699,3300.6,3300.0,3.0]
[1732458285452,0.08307702,3300.3,3300.0,3.0]
[1732458285651,3.02985,3300.5,3300.0,3.0]
[1732458285890,0.55,3300.1,3300.0,5.72726]
[1732458286255,0.63421988,3300.1,3300.0,5.72726]
[1732458286455,0.63421988,3300.1,3300.0,6.299986]
[1732458286695,4.58499,3301.0,3300.4,2.72692]
[1732458286879,0.03035699,3300.9,3300.4,2.72692]
[1732458287088,0.08425123,3300.9,3300.6,2.72673]
[1732458287394,0.08425123,3300.9,3300.5,2.7268]
[1732458287900,3.02921,3301.2,3300.5,2.7268]
[1732458288096,1.5556,3301.3,3300.5,2.7268]
[1732458288097,0.08425123,3300.8,3300.5,2.7268]
[1732458288266,3.02932,3301.1,3300.5,2.7268]
[1732458288456,0.08425123,3300.7,3300.5,2.7268]
[1732458288659,0.08425123,3300.7,3300.6,0.27268]
[1732458288660,0.55,3300.7,3300.6,0.27268]
[1732458289261,3.5794,3301.0,3300.6,0.27268]
[1732458289501,0.55,3301.2,3300.5,2.72684]
[1732458289703,0.55,3301.0,3300.6,2.72676]
[1732458290024,1.5556,3301.3,3300.6,0.03029622]
[1732458290172,4.58479,3301.3,3300.7,2.72663]
[1732458290996,3.02929,3301.1,3300.6,3.24460802]
[1732458291202,3.02954,3300.9,3300.4,3.0]
[1732458291432,0.55,3300.8,3300.4,3.0]
[1732458291586,0.55,3301.0,3300.4,3.0]
[1732458291926,3.02934,3301.1,3300.4,3.0]
[1732458291927,0.55,3301.2,3300.7,2.72662]
[1732458292069,1.5556,3301.3,3300.5,0.03029614]
[1732458292274,3.02921,3301.2,3300.7,2.72663]
[1732458292717,1.5556,3301.3,3300.4,3.0]
[1732458292718,3.02948,3300.9,3300.4,3.0]
[1732458293010,3.02957,3300.8,3300.2,7.29749]
[1732458293229,3.02948,3300.9,3300.3,2.727]
[1732458293516,1.71116,3301.3,3300.4,3.0]
[1732458293517,3.02984,3300.5,3300.4,3.0]
[1732458293720,1.5157,3300.5,3300.0,2.72721]
[1732458294018,0.55,3300.4,3300.1,5.72714]
[1732458294326,0.55,3300.4,3300.0,3.0]
[1732458294475,0.55,3300.4,3300.0,0.845469]
[1732458294670,0.55,3300.6,3300.0,2.72727]
[1732458294905,3.61015699,3300.6,3300.1,3.0]
[1732458295309,0.55,3300.8,3300.1,3.0]
[1732458295613,0.55,3300.8,3300.3,5.72697]
[1732458295813,1.5157,3300.9,3300.5,2.72684]
[1732458296724,3.0293,3301.1,3300.5,2.72684]
[1732458297020,3.0293,3301.1,3300.3,5.72697]
[1732458297516,0.63448409,3301.0,3300.6,2.72672]
[1732458297680,0.63448409,3301.0,3300.6,2.72677]
[1732458297876,0.63448409,3301.0,3300.8,2.72655]
[1732458298311,0.08448409,3301.0,3300.9,2.72652]
[1732458298611,0.08453334,3301.0,3300.8,2.72661]
[1732458298818,3.02906,3301.4,3300.8,2.72661]
[1732458299127,0.08453334,3300.9,3300.7,3.0]
[1732458299424,3.02906,3301.4,3300.8,5.45316]
[1732458299579,0.55,3301.3,3300.8,2.72655]
[1732458299777,0.55,3301.5,3301.0,2.72642]
[1732458300210,0.55,3301.5,3301.2,2.72626]
[1732458300528,0.55,3301.5,3300.9,0.03029297]
[1732458300529,0.03035699,3301.5,3300.9,3.0]
[1732458300822,0.03035699,3301.9,3300.9,3.0]
[1732458301115,3.0293,3301.1,3300.6,2.72674]
[1732458301322,0.19684921,3301.9,3300.2,1.6376]
[1732458301323,0.03035699,3301.0,3300.2,1.6376]
[1732458301534,1.5157,3301.4,3299.9,3.32756408]
[1732458301535,3.02985,3300.5,3299.9,3.32756408]
[1732458301828,0.55,3300.4,3300.0,0.33275641]
[1732458301984,0.55,3300.4,3299.8,1.6376]
[1732458302527,3.57994,3300.4,3299.8,4.36495]
[1732458302683,3.57994,3300.4,3299.8,5.074204]
[1732458303024,3.57975,3300.6,3299.9,3.0]
[1732458303190,0.55,3300.3,3299.9,3.0]
[1732458303375,3.03035,3300.0,3299.4,4.28924]
[1732458303583,0.58035699,3299.9,3298.9,1.5615]
[1732458303926,3.03035,3300.0,3298.7,2.72832]
[1732458303927,0.55,3299.3,3298.7,2.72832]
[1732458304127,0.55,3299.3,3298.5,1.5615]
[1732458304128,0.55,3299.3,3298.8,3.001092]
[1732458304278,0.55,3299.6,3299.0,2.72805]
[1732458304491,0.55,3299.7,3299.0,3.273681]
[1732458304781,3.0305,3299.8,3298.9,2.72815]
[1732458304782,0.55,3299.4,3298.9,2.72815]
[1732458304980,0.55,3299.4,3299.0,2.72809]
[1732458305183,0.55,3299.6,3299.1,5.72795]
[1732458305478,0.55,3299.3,3298.8,5.72826]
[1732458305679,0.55,3299.1,3298.6,0.428996]
[1732458305922,0.55,3299.1,3298.6,2.72842]
[1732458306307,4.54599,3299.4,3298.6,2.72839]
[1732458306308,0.55,3299.3,3298.6,2.72839]
[1732458306614,3.03109,3299.2,3298.7,0.701841]
[1732458306824,0.55,3299.3,3298.7,0.701841]
[1732458306985,0.55,3299.1,3298.7,3.0]
[1732458307323,3.58114,3299.1,3298.5,7.29]
[1732458307522,0.55,3298.9,3298.6,0.429006]
[1732458307832,0.55,3298.9,3298.8,2.72826]
[1732458308821,0.63353452,3298.9,3298.7,2.72829]
[1732458309097,0.63353452,3298.9,3298.7,5.72834]
[1732458309293,0.63353452,3298.9,3298.7,5.72828]
[1732458309519,0.63353452,3298.9,3298.8,5.72826]
[1732458309730,0.55,3298.9,3298.8,8.135414]
[1732458310023,12.02034,3300.0,3299.4,2.72775]
[1732458310024,8.99,3300.0,3299.4,2.72775]
[1732458310321,3.03027,3300.1,3299.4,3.273268]
[1732458310534,3.03021,3300.1,3299.1,2.72794]
[1732458310709,3.03056,3299.8,3299.2,3.0]
[1732458311030,3.03069,3299.6,3298.8,2.407154]
[1732458311322,3.58083,3299.5,3298.9,3.0]
[1732458311697,0.55,3299.3,3298.9,3.0]
[1732458312510,0.55,3299.1,3298.9,3.0]
[1732458312685,0.55,3299.1,3298.9,2.72813]
[1732458312884,0.55,3299.1,3299.0,2.72809]
[1732458313883,0.55,3299.2,3298.8,3.0]
[1732458314817,3.61139699,3299.2,3298.6,2.72838]
[1732458315019,0.03035699,3299.2,3298.7,3.0]
[1732458315224,0.55,3299.4,3298.8,2.72825]
[1732458315432,0.55,3299.4,3298.9,2.72817]
[1732458315586,3.58067,3299.6,3298.9,2.72812]
[1732458315781,0.55,3299.6,3298.9,2.72812]
[1732458316019,0.55,3299.4,3298.7,5.72829]
[1732458316227,3.06111699,3299.5,3298.5,3.0]
[1732458316228,0.55,3298.9,3298.5,3.0]
[1732458316519,0.55,3299.0,3298.2,2.72871]